Cogmind - Beta 17 @@@ ROGUE MODE // 2026.08.03 @ 16:02:13 Player: Conwew Result: Destroyed by G-50 Soldier with Heavy Laser Performance ------------- Evolutions (4) 2000 Regions Visited (6) 1200 Robots Destroyed (38) 190 Value Destroyed (1518) 1518 Prototype IDs (10) 200 Alien Tech Used (0) 0 Bonus (1046) 1046 TOTAL SCORE: 6154 Bonus ------- High Alert Combat Kills 12 Follower Combat Kills 234 Registered with UFD 300 Met Optimus in HQ 500 Cogmind --------- Core Integrity 0/850 Matter 7/300 Energy 120/140 System Corruption 3% Temperature Hot (237) Movement Walking (120) Location -6/Factory Parts ------- > --- POWER (2) -------- Light Deuterium Engine > --- PROPULSION (4) --- Carbon-fiber Leg Carbon-fiber Leg Flexi-carbon Leg Flexi-carbon Leg > --- UTILITY (5) ------ Improved Heat Sink Hardened Medium Armor Plating Hacking Suite Hacking Suite System Shield > --- WEAPON (4) ------- Coil Gun Advanced Assault Cannon Advanced Assault Cannon (fused) Heavy Flak Cannon > --- INVENTORY (5) ---- Flexi-carbon Leg EM Shield Improved Datajack DRS Beacon (Ready) Peak State ------------ > --- POWER ------------ Improved Ion Engine > --- PROPULSION ------- Carbon-fiber Leg Flexi-carbon Leg Flexi-carbon Leg > --- UTILITY ---------- Surveybot 17 Chip Hacking Suite Hacking Suite System Shield A0-MCA's Component Scanner > --- WEAPON ----------- Coil Gun Advanced Assault Cannon Advanced Assault Cannon Advanced Assault Cannon > --- INVENTORY -------- Improved Heat Sink Hardened Medium Armor Plating EM Shield Improved Datajack DRS Beacon [Rating: 59] Favorites ----------- Power Ion Engine Engine Ion Engine Power Core Light Fission Core Propulsion Aluminum Leg Leg Aluminum Leg Hover Unit Gravmag System Utility Hacking Suite Device ECM Suite Processor Surveybot 17 Chip Hackware Hacking Suite Protection Hardened Medium Armor Plating Weapon Light Assault Rifle Energy Gun Medium Laser Ballistic Gun Light Assault Rifle Ballistic Cannon Advanced Assault Cannon Build | -11 -10 -10 -8 -6 -6 -6 ------- Run | Yrd Mat Sub Scr Fac Was Fac Slots Evolved 8 | . . . . 8 . . Power 1 | . . . . 1 . . Propulsion 2 | . . . . 2 . . Utility 3 | . . . . 3 . . Weapon 2 | . . . . 2 . . Parts Attached 46 | 5 4 . 1 11 3 22 Power 7 | 1 . . . 1 . 5 Engine 5 | 1 . . . . . 4 Core 2 | . . . . 1 . 1 Reactor . | . . . . . . . Propulsion 15 | 2 2 . 1 2 2 6 Treads . | . . . . . . . Leg 13 | 2 2 . 1 . 2 6 Wheel . | . . . . . . . Hover 2 | . . . . 2 . . Flight . | . . . . . . . Utility 11 | . 2 . . 5 1 3 Device 5 | . 2 . . 1 . 2 Storage . | . . . . . . . Processor 2 | . . . . 2 . . Hackware 3 | . . . . 2 . 1 Protection 1 | . . . . . 1 . Artifact . | . . . . . . . Weapon 13 | 2 . . . 3 . 8 Energy Gun 2 | 1 . . . 1 . . Energy Cannon . | . . . . . . . Ballistic Gun 6 | 1 . . . 2 . 3 Ballistic Cannon 5 | . . . . . . 5 Launcher . | . . . . . . . Special Weapon . | . . . . . . . Impact Weapon . | . . . . . . . Slashing Weapon . | . . . . . . . Piercing Weapon . | . . . . . . . Special Melee Weapon . | . . . . . . . Unidentified Prototypes . | . . . . . . . Parts Lost 18 | . . . . 3 4 11 Power 5 | . . . . . 1 4 Propulsion 5 | . . . . 1 1 3 Utility 2 | . . . . 1 . 1 Weapon 6 | . . . . 1 2 3 Highest Loss Streak 6 | . . . . 2 4 6 To Critical Strikes . | . . . . . . . Average Backups 3 | . 1 3 3 3 3 3 Power . | . . . . . . . Propulsion 1 | . 1 3 2 . 1 . Utility 1 | . . . . 1 . 1 Weapon . | . . . . . . . Tool/Special . | . . . . . . . Unused Backups 5 | . . . 2 . . 3 Power . | . . . . . . . Propulsion 3 | . . . 2 . . 1 Utility 1 | . . . . . . 1 Weapon . | . . . . . . . Tool/Special 1 | . . . . . . 1 Average Slot Usage (%) 85 | . 92 100 100 70 68 75 Engine 9 | . 14 14 14 6 4 4 Leg 21 | . 28 28 28 9 5 19 Device 16 | . 20 28 28 16 4 2 Processor 4 | . . . . 12 13 7 Hackware 7 | . . . . 2 13 19 Energy Gun 8 | . 14 14 14 8 4 . Ballistic Gun 9 | . 14 14 14 8 7 4 Ballistic Cannon 4 | . . . . . . 12 Peak Build Rating 59 | 5 7 7 9 53 53 59 Average Rating 25 | 3 6 7 7 35 43 47 On Entrance 16 | . 5 7 7 9 53 31 Avg Prop Armor Cover (%) 12 | . . . . 6 6 17 Naked Turns . | . . . . . . . Heaviest Build 46 | 8 11 11 11 24 24 46 Greatest Support 70 | 20 20 20 20 20 30 70 Greatest Overweight (x) 4 | 1 . . . 1 2 4 Average Overweight (x) . | . . . . . . . Largest Inventory Capacity 5 | 5 5 5 5 5 5 5 Average Capacity 5 | 5 5 5 5 5 5 5 Most Carried 5 | . 4 3 5 5 5 5 Average Carried 3 | . 1 3 4 4 4 4 Final Capacity 5 | 5 5 5 5 5 5 5 Final Carried 5 | . 3 3 5 5 2 4 Class Distribution -------------------- 49% | Mutant 15% | Hacker-Mutant 12% | Hacker-Tank 9% | Infiltrator-Skirmisher 6% | Hacker-Gunner 4% | Infiltrator-Mutant Dominant Class ---------------- Mutant | -10/Materials Mutant | -10/Subcaves Mutant | -8/Scraptown Infiltrator-Skirmisher | -6/Factory Hacker-Mutant | -6/Waste Hacker-Mutant | -6/Factory Resources | -11 -10 -10 -8 -6 -6 -6 ----------- Run | Yrd Mat Sub Scr Fac Was Fac Matter Collected 1479 | 208 107 . . 156 . 1008 Remotely . | . . . . . . . Salvage Created 1255 | . 170 . . 193 . 892 Parts 62 | . 7 . . 8 . 47 Haulers Intercepted . | . . . . . . . Recyclers Shooed 6 | . . . . . . 6 Parts Field Recycled . | . . . . . . . Retrieved Matter . | . . . . . . . Parts Self-Destructed 1 | . . 1 . . . . Prevented . | . . . . . . . Parts Restored . | . . . . . . . Kills | -11 -10 -10 -8 -6 -6 -6 ------- Run | Yrd Mat Sub Scr Fac Was Fac Combat Hostiles Destroyed 32 | . 4 . . 5 . 23 Guns 17 | . 4 . . 5 . 8 Cannons 15 | . . . . . . 15 Classes Destroyed 9 | . 3 . . 3 . 3 Worker 1 | . . . . . . 1 Builder 3 | . . . . . . 3 Recycler 2 | . 1 . . . . 1 Swarmer 11 | . 3 . . 1 . 7 Grunt 8 | . 1 . . 1 . 6 Brawler 2 | . . . . 1 . 1 Sentry 4 | . . . . . . 4 Hunter 4 | . . . . 1 . 3 Programmer 3 | . . . . 1 . 2 Best Kill Streak 5 | . 2 . . 3 . 5 Combat Bots Only 5 | . 2 . . 3 . 5 Max Kills in Single Turn 2 | . 1 . . 1 . 2 Gunslinging . | . . . . . . . Exploded . | . . . . . . . Melee . | . . . . . . . Uniques/NPCs Destroyed . | . . . . . . . Combat | -11 -10 -10 -8 -6 -6 -6 -------- Run | Yrd Mat Sub Scr Fac Was Fac Hostile Shots Fired 363 | . 30 1 . 45 4 283 Missed 128 | . 7 . . 12 . 109 Hits 235 | . 23 1 . 33 4 174 Melee 6 | . . . . 2 4 . Projectile 229 | . 23 1 . 31 . 174 Critical Strikes 6 | . 1 . . 2 . 3 Damage Taken 3623 | . 212 18 . 573 166 2654 Core 875 | . 21 . . 156 127 571 Absorbed by Shields . | . . . . . . . Core Remaining (%) 95 | 100 . . 91 . . . Volleys Fired 122 | . 25 . . 18 . 79 Largest 4 | . 2 . . 3 . 4 Hottest 154 | . 70 . . 145 . 154 Shots Fired 281 | . 50 . . 45 . 186 Gun 157 | . 50 . . 45 . 62 Cannon 124 | . . . . . . 124 Launcher . | . . . . . . . Special . | . . . . . . . Kinetic 233 | . 25 . . 22 . 186 Thermal 48 | . 25 . . 23 . . Explosive . | . . . . . . . Electromagnetic . | . . . . . . . Robot Hit Streak 9 | . 6 . . 9 . 8 Robot Miss Streak 8 | . 4 . . 3 . 8 Penetration Max 1 | . . . . . . 1 Secondary Targets 2 | . 1 . . 1 . . Max Gunslinging Chain 1 | . 1 . . 1 . . Shots Hit Robots 159 | . 26 . . 36 . 97 Core Hits 109 | . 9 . . 27 . 73 Critical Kills . | . . . . . . . Critical Parts Destroyed 1 | . . . . . . 1 Critical Strikes 8 | . 2 . . . . 6 Burn 2 | . 2 . . . . . Destroy 1 | . . . . . . 1 Blast 5 | . . . . . . 5 Melee Attacks . | . . . . . . . Impact . | . . . . . . . Slashing . | . . . . . . . Piercing . | . . . . . . . Sneak Attacks . | . . . . . . . Combat Hostiles . | . . . . . . . Follow-up Attacks . | . . . . . . . Damage Inflicted 3773 | . 262 . . 699 . 2812 Guns 1836 | . 262 . . 699 . 875 Cannons 1902 | . . . . . . 1902 Explosions 35 | . . . . . . 35 Melee . | . . . . . . . Ramming . | . . . . . . . Kinetic 3112 | . 111 . . 224 . 2777 Thermal 626 | . 151 . . 475 . . Explosive 35 | . . . . . . 35 Electromagnetic . | . . . . . . . Impact . | . . . . . . . Slashing . | . . . . . . . Piercing . | . . . . . . . Highest Corruption 3 | . . . . 3 3 3 Average Corruption 2 | . . . . 2 3 3 Corruption Purged . | . . . . . . . Corruption Blocked . | . . . . . . . Effects 28 | . . . . . 1 27 Message Errors 5 | . . . . . . 5 Matter Fused 8 | . . . . . . 8 Heat Flow Errors 5 | . . . . . . 5 Energy Discharges 2 | . . . . . . 2 Parts Fused 1 | . . . . . . 1 Data Loss (major) 3 | . . . . . 1 2 Alerts 2 | . . . . . . 2 Weapon Failures 2 | . . . . . . 2 Overload Shots . | . . . . . . . Overflow Damage 35 | . . . . . . 35 Projectiles 35 | . . . . . . 35 Explosions . | . . . . . . . Melee . | . . . . . . . Knockbacks 6 | . . . . . . 6 Impact . | . . . . . . . Kinetic 6 | . . . . . . 6 Secondary . | . . . . . . . Self-Inflicted Damage 168 | . . . . . . 168 Shots 2 | . . . . . . 2 Rammed . | . . . . . . . Targets Rammed . | . . . . . . . Kicked . | . . . . . . . Crushed . | . . . . . . . Highest Temperature 365 | . 180 . . 108 . 365 Average Temperature 69 | . 66 . . 32 . 84 Received Heat Transfer 519 | . 36 6 . 36 . 441 Effects 1 | . . . . . . 1 Energy Bleed 1 | . . . . . . 1 Siege Activations . | . . . . . . . Martial Activations . | . . . . . . . Shielding Activations . | . . . . . . . Robots Disrupted . | . . . . . . . Combat Hostiles . | . . . . . . . Robots Corrupted . | . . . . . . . Combat Hostiles . | . . . . . . . Parts Fried . | . . . . . . . Impact Corruptions . | . . . . . . . Robots Melted . | . . . . . . . Combat Hostiles . | . . . . . . . Parts Melted 2 | . 2 . . . . . Heat Transferred 1053 | . 592 . . 461 . . Parts Sabotaged . | . . . . . . . Parts Stolen . | . . . . . . . Parts Stripped . | . . . . . . . Power Chain Reactions . | . . . . . . . Alert | -11 -10 -10 -8 -6 -6 -6 ------- Run | Yrd Mat Sub Scr Fac Was Fac Maximum Alert Level 2 | . . . . . . 2 Low Security (%) 83 | 100 100 . . 100 100 68 Level 1 12 | . . . . . . 24 Level 2 3 | . . . . . . 7 Level 3 . | . . . . . . . Level 4 . | . . . . . . . Level 5 . | . . . . . . . High Security . | . . . . . . . Max Security . | . . . . . . . Peak Influence 420 | . 51 . . 47 2 420 Initial 2 | . . . . . 2 . Average 69 | . 8 . . 7 . 130 Influence Increases 1231 | . 110 . . 121 . 1000 Destroy 0b10 Robot/C 760 | . 80 . . 100 . 580 Destroy 0b10 Robot/NC 35 | . 5 . . . . 30 Destroy Leader 172 | . 20 . . 20 . 132 Allied During Kill 33 | . . . . . . 33 Successful Hack 24 | . 4 . . . . 20 Disable Machine 150 | . . . . . . 150 Destroy Structure 57 | . 1 . . 1 . 55 Influence Decreases 836 | . 96 14 . 114 7 605 Entered New Map 12 | . . 7 . . 5 . Time Decay 564 | . 96 7 . 94 2 365 Lost Part 100 | . . . . 20 . 80 Lost Ally 160 | . . . . . . 160 Squads Dispatched 14 | . 1 . . 2 . 11 Investigation 5 | . . . . 1 . 4 Extermination 4 | . . . . 1 . 3 Reinforcement 5 | . 1 . . . . 4 Assault . | . . . . . . . Garrison . | . . . . . . . Intercept . | . . . . . . . Searches Triggered . | . . . . . . . Construction Impeded 1 | . . . . . . 1 Haulers Reinforced 1 | . . . . . . 1 Active Scanning Responses . | . . . . . . . Cargo Convoy Interrupts 1 | . . . . . . 1 Stealth | -11 -10 -10 -8 -6 -6 -6 --------- Run | Yrd Mat Sub Scr Fac Was Fac Distress Signals 6 | . 2 . . . . 4 Communications Jammed . | . . . . . . . Distress Signals . | . . . . . . . Times Spotted 68 | . 13 5 . 6 5 39 Peak Tracking Total 6 | . 5 2 . 3 5 6 Tactical Retreats 2 | . 1 1 . . . . ECM-based Alert Blocks 4 | . 3 1 . . . . Traps | -11 -10 -10 -8 -6 -6 -6 ------- Run | Yrd Mat Sub Scr Fac Was Fac Traps Triggered 5 | . . . . 2 . 3 Indirectly . | . . . . . . . Trap Hack Attempts . | . . . . . . . Triggered . | . . . . . . . Disarmed . | . . . . . . . Reprogrammed . | . . . . . . . Reused . | . . . . . . . Traps Extracted . | . . . . . . . Installed . | . . . . . . . Triggered . | . . . . . . . Machines | -11 -10 -10 -8 -6 -6 -6 ---------- Run | Yrd Mat Sub Scr Fac Was Fac Machines Disabled 10 | . . . . . . 10 Max in Single Turn 4 | . . . . . . 4 Machines Repaired . | . . . . . . . Machines Dismantled . | . . . . . . . Machines Sabotaged . | . . . . . . . Overloaded Fab Kills . | . . . . . . . Hacking | -11 -10 -10 -8 -6 -6 -6 --------- Run | Yrd Mat Sub Scr Fac Was Fac Machines Accessed 14 | . 2 . 3 1 . 8 Terminals 6 | . 2 . . . . 4 Fabricators 1 | . . . . . . 1 Repair Stations . | . . . . . . . Recycling Units 4 | . . . . 1 . 3 Scanalyzers . | . . . . . . . Garrison Access . | . . . . . . . Total Hacks 38 | . 3 . 19 1 . 15 Successful 30 | . 2 . 19 1 . 8 Failed 8 | . 1 . . . . 7 Catastrophic . | . . . . . . . Database Lockouts . | . . . . . . . Manual 17 | . 2 . . 1 . 14 Terminals 11 | . 3 . . . . 8 Fabricators 3 | . . . . . . 3 Repair Stations . | . . . . . . . Recycling Units 5 | . . . . 1 . 4 Scanalyzers . | . . . . . . . Garrison Access . | . . . . . . . Terminal Hacks 21 | . 1 . 19 . . 1 Record 18 | . . . 18 . . . Level Access Points 1 | . . . . . . 1 Locate Traps 1 | . 1 . . . . . Proto ID Catalog 1 | . . . 1 . . . Fabricator Hacks . | . . . . . . . Repair Station Hacks . | . . . . . . . Recycling Unit Hacks 1 | . . . . . . 1 Report Inventory 1 | . . . . . . 1 Scanalyzer . | . . . . . . . Garrison Access Hacks . | . . . . . . . Unauthorized Hacks 8 | . 1 . . 1 . 6 Terminals 4 | . 1 . . . . 3 Botnet 4 | . 1 . . . . 3 Fabricators . | . . . . . . . Repair Stations . | . . . . . . . Recycling Units 4 | . . . . 1 . 3 Fedlink 2 | . . . . 1 . 1 Scrapoids 2 | . . . . . . 2 Scanalyzers . | . . . . . . . Garrison Access . | . . . . . . . Data Cores Recovered . | . . . . . . . Used . | . . . . . . . Hacking Detections 6 | . 2 . . . . 4 Full Trace Events . | . . . . . . . Feedback Events . | . . . . . . . Feedback Blocked . | . . . . . . . Robot Schematics Acquired . | . . . . . . . Robots Built . | . . . . . . . Authchips . | . . . . . . . Time . | . . . . . . . Total Robot Build Rating . | . . . . . . . Part Schematics Acquired . | . . . . . . . Parts Built . | . . . . . . . Authchips . | . . . . . . . Time . | . . . . . . . Total Part Build Rating . | . . . . . . . Part Studies Acquired . | . . . . . . . Parts Repaired . | . . . . . . . Time . | . . . . . . . Parts Recycled . | . . . . . . . Recycled Matter . | . . . . . . . Retrieved Matter . | . . . . . . . Retrieved Components . | . . . . . . . Parts Scanalyzed . | . . . . . . . Part Schematics Acquired . | . . . . . . . Parts Damaged . | . . . . . . . Bothacking | -11 -10 -10 -8 -6 -6 -6 ------------ Run | Yrd Mat Sub Scr Fac Was Fac Used RIF Installer . | . . . . . . . Robots Hacked . | . . . . . . . Non-combat . | . . . . . . . Combat . | . . . . . . . Robot Hacks Applied . | . . . . . . . Relay Couplers Released . | . . . . . . . Fabnet Peak Effective % . | . . . . . . . Robots Rewired . | . . . . . . . Allies Hacked . | . . . . . . . Hacks Repelled . | . . . . . . . Allies | -11 -10 -10 -8 -6 -6 -6 -------- Run | Yrd Mat Sub Scr Fac Was Fac Total Allies 10 | . . . . . . 10 Largest Group 5 | . . . . . . 5 Highest-Rated Group 140 | . . . . . . 140 Highest-Rated Ally 28 | . . . . . . 28 Initial UFD Resources 34 | . . . . 24 34 34 Total Orders . | . . . . . . . Ally Attacks 48 | . . . . . . 48 Total Damage 1532 | . . . . . . 1532 Kills 9 | . . . . . . 9 Allies Corrupted . | . . . . . . . Allies Melted . | . . . . . . . Intel | -11 -10 -10 -8 -6 -6 -6 ------- Run | Yrd Mat Sub Scr Fac Was Fac Active Infowar (turns) 2987 | . 594 330 1262 737 64 . Structural 175 | . . . . 111 64 . ECM 2828 | . 594 330 1262 642 . . Robot Analysis Total . | . . . . . . . Derelict Logs Recovered 1 | . . 1 . . . . Drone Launches . | . . . . . . . Drone Recoveries . | . . . . . . . Exploration | -11 -10 -10 -8 -6 -6 -6 ------------- Run | Yrd Mat Sub Scr Fac Was Fac Turns Passed 4621 | 42 636 330 1262 748 83 1520 Spaces Moved 3294 | 31 411 247 1043 485 83 994 Core 75 | 4 . . . . 28 43 Treads . | . . . . . . . Legs 3095 | 27 411 247 1043 414 2 951 Wheels . | . . . . . . . Hover 124 | . . . . 71 53 . Flight . | . . . . . . . Fastest Speed 50 | 50 120 120 120 120 50 100 Average Speed 122 | 114 120 120 120 136 96 122 Slowest Speed 250 | 120 120 120 120 190 190 250 Overloaded Moves . | . . . . . . . Propulsion Burnouts . | . . . . . . . Robots Hopped . | . . . . . . . Potential Cave-ins . | . . . . . . . Cave-ins Triggered . | . . . . . . . Exploration Rate (%) 38 | 3 55 23 78 13 75 21 Regions Visited 6 Branch Regions 2 Pre-discovered Areas 7 | . . 1 5 . . 1 Known Exits Taken 1 | . . . 1 . . . Unknown Exits Taken 3 | 1 1 1 . . . . Scrap Searched 1 | . . . 1 . . . Spaces Dug 7 | . . . . . . 7 Terrain Destroyed 48 | . . . . . . 48 Melee . | . . . . . . . Projectile 25 | . . . . . . 25 AOE 23 | . . . . . . 23 Terrain Rammed . | . . . . . . . Walls Destroyed . | . . . . . . . Machines Disabled . | . . . . . . . Actions | -11 -10 -10 -8 -6 -6 -6 --------- Run | Yrd Mat Sub Scr Fac Was Fac Total 3650 | 35 508 280 1054 534 85 1154 Wait 157 | . 64 34 3 13 . 43 Move 3289 | 30 410 246 1042 485 82 994 Hop . | . . . . . . . Pick Up 18 | . 3 . 5 5 . 5 Fast Attach 34 | 5 2 . . 6 . 21 Attach 11 | . . . . 5 3 3 Detach 1 | . . . . . . 1 Swap 3 | . 2 . 1 . . . Drop 13 | . 2 . 3 2 . 6 Fire 122 | . 25 . . 18 . 79 Melee . | . . . . . . . Ram . | . . . . . . . Kick . | . . . . . . . Crush . | . . . . . . . Escape Stasis 2 | . . . . . . 2 Rewire . | . . . . . . . Trap . | . . . . . . . Miscellaneous . | . . . . . . . Route ------- -11/Scrapyard -10/Materials (discovered 3 exits: [*Mat] / [*Min] / [*Sub]) -10/Subcaves (discovered 3 exits: [*Mat x2] / *Scr) -8/Scraptown (discovered 2 exits: *Fac x2) -6/Factory (discovered 6 exits: *Fac x4 / Low x2) -6/Waste -6/Factory (discovered 5 exits: Fac x4 / *Low) History --------- Turn | Location | Event 7 | -11/Scrapyard | Discovered new exit (range 15) 43 | -11/Scrapyard | Entered Materials 44 | -10/Materials | Met a group of wandering Federalists 342 | -10/Materials | Build established: Mutant 635 | -10/Materials | Discovered new exit (range 8) 646 | -10/Materials | Discovered new exit (range 16) 663 | -10/Materials | Discovered new exit (range 15) 679 | -10/Materials | Entered Subcaves 680 | -10/Subcaves | Continued accompanying wandering Federalists (5) 755 | -10/Subcaves | Learned location of Storage (-8) 760 | -10/Subcaves | Shifting Twisted Machinery released Mak. Light Armor Plating 771 | -10/Subcaves | Shifting Twisted Machinery released Battle Rifle 823 | -10/Subcaves | Shifting Twisted Machinery released Battle Cannon 825 | -10/Subcaves | Discovered new exit (range 2) 832 | -10/Subcaves | Shifting Twisted Machinery released Sub. Laser 889 | -10/Subcaves | Discovered new exit (range 15) 890 | -10/Subcaves | Wandering Federalist uncovered a shortcut to Scraptown 1009 | -10/Subcaves | Entered Scraptown 1066 | -8/Scraptown | Heard Great Nut preacher, LISTEN AND RECITE! 1213 | -8/Scraptown | Visited The Evicted 1230 | -8/Scraptown | Visited Shadow of the Wyrm 1247 | -8/Scraptown | Visited Bundlers 1262 | -8/Scraptown | Visited Red Mages 1319 | -8/Scraptown | Visited Fellowship of the Rings 1349 | -8/Scraptown | Visited UFD Registry 1349 | -8/Scraptown | Registered with UFD as "Armorshaft" 1382 | -8/Scraptown | Visited Comm Corps 1448 | -8/Scraptown | Discovered new exit (range 13) 1584 | -8/Scraptown | Visited Science Guys 1622 | -8/Scraptown | Visited DA-N13 Charitable Foundation 1640 | -8/Scraptown | Visited Curators Association 1706 | -8/Scraptown | Visited A0-MCA Data Center 1713 | -8/Scraptown | Given a B rating by A0-MCA 1719 | -8/Scraptown | Found A0-MCA's Component Scanner 1742 | -8/Scraptown | Visited Scrapoid Pod Storage 1757 | -8/Scraptown | Visited Observation Area 1768 | -8/Scraptown | Visited Modified Component R&D 1797 | -8/Scraptown | Visited Derelict Rescue Squad 1807 | -8/Scraptown | Found DRS Beacon 1834 | -8/Scraptown | Visited Junk Repository 1872 | -8/Scraptown | Visited Cartography Club 1899 | -8/Scraptown | Found Surveybot 17 Chip 2029 | -8/Scraptown | Learned location of Extension (-5) 2029 | -8/Scraptown | Learned location of Quarantine (-2) 2029 | -8/Scraptown | Learned 8 Factory zone layouts 2029 | -8/Scraptown | Learned 12 Lower Caves zone layouts 2029 | -8/Scraptown | Learned 4 Storage zone layouts 2029 | -8/Scraptown | Learned 16 Proximity Caves zone layouts 2029 | -8/Scraptown | Learned Research emergency access door positions 2029 | -8/Scraptown | Learned 20 Proximity Caves zone layouts 2029 | -8/Scraptown | Learned location of 2 exits from Proximity Caves 2029 | -8/Scraptown | Learned location of 3 exits from Proximity Caves 2029 | -8/Scraptown | Identified exit to Factory 2067 | -8/Scraptown | Found Deep Structural Scanner 2191 | -8/Scraptown | Met Optimus 2191 | -8/Scraptown | Accepted into 0bPrime 2271 | -8/Scraptown | Entered Factory 2271 | -6/Factory | Evolved 8 slots: Power x1, Propulsion x2, Utility x3, Weapon x2 2272 | -6/Factory | Identified exit to Factory 2272 | -6/Factory | Identified exit to Lower Caves 2718 | -6/Factory | Loaded intel: 8 recycling unit locations 2782 | -6/Factory | Build established: Infiltrator-Skirmisher 3019 | -6/Factory | Sucked down chute 3019 | -6/Factory | Entered Waste 3030 | -6/Waste | Spotted C-40 Crusher 3061 | -6/Waste | Spotted C-40 Crusher 3062 | -6/Waste | Spotted C-40 Crusher 3064 | -6/Waste | Spotted C-40 Crusher 3066 | -6/Waste | Crushed by Compactor (1 part destroyed, 1 dropped) 3075 | -6/Waste | Crushed by Compactor (1 part destroyed, 2 dropped) 3076 | -6/Waste | Spotted C-40 Crusher 3078 | -6/Waste | Crushed by Compactor (1 part destroyed, 1 dropped) 3083 | -6/Waste | Crushed by Compactor (1 part destroyed, 1 dropped) 3093 | -6/Waste | Discovered new exit (range 10) 3102 | -6/Waste | Entered Factory 3114 | -6/Factory | Lost 4 parts (1p1n2w) 3369 | -6/Factory | Build established: Hacker-Mutant 3422 | -6/Factory | Loaded intel: 8 recycling unit locations 3422 | -6/Factory | Learned location of Protoforge (-2) 3522 | -6/Factory | Core integrity fell below 50% 3579 | -6/Factory | Lost 6 parts (2p2n2w) 3751 | -6/Factory | Core integrity fell below 20% 3756 | -6/Factory | Scrapoid reinforcements arrived 4076 | -6/Factory | Discovered exit to Lower Caves (range 16) 4353 | -6/Factory | Build established: Hacker-Tank 4515 | -6/Factory | Scrapoid reinforcements arrived 4550 | -6/Factory | Cargo convoy interrupted 4620 | -6/Factory | Lost 5 allies 4622 | -6/Factory | Destroyed by G-50 Soldier with Heavy Laser Last Messages --------------- K-01 Serf collects debris. Acquired 70 matter. R-10 Processor collects Mak. Salvage Targeting Computer. K-01 Serf collects debris. Penetrated by Slug. U-05 Engineer sends out distress signal. Penetrated by Slug. R-10 Processor collects CPS Tube. K-01 Serf collects debris. Slug penetrates H-66 Slayer. K-01 Serf destroyed. U-05 Engineer destroyed. K-01 Serf collects debris. Penetrated by Slug. Slug penetrates Wall. Slug penetrates H-66 Slayer. H-66 Slayer destroyed. K-01 Serf collects debris. G-50 Soldier suffers critical hit (Burn). Map ----- +----------------------------------------------------+ | ?????# # """"" #?????????????????? | | ?????# # ??????????????????? | | ?????# # """ #?????????????????? | | ?????# # [ """"" #?????????????????? | | ?????#! # """"" #?????????????????? | | ?????# # #?????????????????? | | ?????# # #?????????????????? | | ###+#####+#######+#####+########?????????????????? | | % #?????????????????????? | | % ##############????????? | | % # ! #????????? | | % % % # ! ?????????? | | % % #] " " " ?????????? | | #########+############ # " " " #????????? | | ????? ?????????# # " " " #????????? | | ???? ""????????# # " " " #????????? | | ???# """" ###### + """ " " " #????????? | | ???# """" / k # "F" " " " #????????? | | ???# """" ###### R # " " " " #????????? | | ???#!! """???????# # """ " " " #????????? | | ???#!= """???????# t# """ " " " #????????? | | ???#!= ????????# # #????????? | | ???# ???????#u ##############????????? | | ???# ????????# % #?????????????????????? | | ???# ???????#u #?????????????????????? | | ???# ????????# @%#?????????????????????? | | ???########??????????# * #?????????????????????? | | ?????????????????????# ]%%#?????????????????????? | | ?????????????????????# R*=!#?????????????????????? | | ?????????????????????#u!=|!#?????????????????????? | | ?????????????????????#**%*%#?????????????????????? | | ?????????????????????#!!!!=+?????????????????????? | | ?????????????????????# %%!#?????????????????????? | | ?????????????????????# ![%[#?????????????????????? | | ?????????????????????#=*%[%#?????????????????????? | | ?????????????????????#%g!! #?????????????????????? | | ?????????????????????#%*| #?????????????????????? | | ?????????????????????+=g +?????????????????????? | | ?????????????????????#! g%=#?????????????????????? | | ?????????????????????# ??????????????????????? | | ??????????????????????? ??????????????????????? | | ?????????????????????????????????????????????????? | | ?????????????????????????????????????????????????? | | ?????????????????????????????????????????????????? | | ?????????????????????????????????????????????????? | | ?????????????????????????????????????????????????? | | ?????????????????????????????????????????????????? | | ?????????????????????????????????????????????????? | | ?????????????????????????????????????????????????? | | ?????????????????????????????????????????????????? | +----------------------------------------------------+ Best States ------------- Heat Dissipation 56 Energy Generation 23 Energy Capacity 310 Matter Stores 300 Matter Capacity 300 Sight Range 16 Terrain Scan Density 1210 ECM Strength 1 Armor Coverage 225 Evasion (%) 55 Offensive Hacking 20 Defensive Hacking 10 Item Schematics ----------------- None Robot Schematics ------------------ None Fabricated ------------ Nothing Repaired ---------- Nothing Studied --------- None Alien Tech Used ----------------- None Achievements -------------- None Challenges ------------ None Game ------ Seed BackupBombSuite Manual? 0 Play Time 00:34:40 Cumulative 70.3 hours Start 2026.08.03 @ 15:29:44 End 2026.08.03 @ 16:02:13 Sessions 1 Manual Loads 0 Difficulty Rogue Special Mode None Game No. 72 Rogue 72 Adventurer 0 Explorer 0 Win Type - Total 1 Types 1/0/0/0/0/0/0/0/0/0 Lore% 65 Gallery% 45 Achievement% 41 Wizard Run 0 Options --------- Layout 1 ASCII 0 Keyboard 0 Movement Mouse Keybinds 0 Fullscreen 1 Font 24/X11 Map View 50x35 Zoom Use 0% Tactical HUD 0 Map Filters NONE Filters NONE Steam 1 RUN: a23424a9-3d60-4b16-b405-3355b8158615